bitfinex-derivatives/quotes_SOLF0:USTF0_20260302
["timestamp","ask_amount","ask_price","bid_price","bid_amount"]
[1772470134542,45.9219218,89.722,89.643,52.898129]
[1772470134746,20.049,89.767,89.662,10.036]
[1772470134747,10.029,89.727,89.662,10.036]
[1772470134950,10.029,89.727,89.662,52.896129]
[1772470135645,10.029,89.727,89.671,10.035]
[1772470135844,45.9219218,89.744,89.662,42.860129]
[1772470136240,45.9219218,89.744,89.663,10.036]
[1772470136644,10.029,89.721,89.663,10.036]
[1772470136849,45.9219218,89.744,89.672,10.035]
[1772470137956,45.9219218,89.744,89.63,62.0]
[1772470137957,45.9219218,89.744,89.641,42.860129]
[1772470138451,10.029,89.725,89.655,10.037]
[1772470138654,45.9219218,89.744,89.655,10.037]
[1772470138953,45.9219218,89.744,89.655,42.860129]
[1772470139160,155.82,89.836,89.671,42.860129]
[1772470139161,45.9219218,89.769,89.671,42.860129]
[1772470139352,45.9219218,89.769,89.651,42.860129]
[1772470139650,10.026,89.751,89.666,10.035]
[1772470139856,53.5000234,89.75,89.653,42.860129]
[1772470140256,45.9219218,89.742,89.653,42.860129]
[1772470140647,7.5781016,89.73,89.637,42.860129]
[1772470140952,45.9219218,89.729,89.637,42.860129]
[1772470141754,45.9219218,89.729,89.636,51.80292433]
[1772470141954,45.9219218,89.71,89.636,51.80292433]
[1772470142351,53.5000234,89.71,89.591,42.860129]
[1772470142556,45.9219218,89.679,89.591,42.860129]
[1772470142756,45.9219218,89.679,89.57,7.5781016]
[1772470142757,45.9219218,89.679,89.57,50.4382306]
[1772470142954,45.9219218,89.661,89.582,10.045]
[1772470143448,45.9219218,89.661,89.593,42.860129]
[1772470143655,45.9219218,89.689,89.593,42.860129]
[1772470143850,45.9219218,89.689,89.59,7.5781016]
[1772470143851,45.9219218,89.711,89.611,42.860129]
[1772470144055,45.9219218,89.711,89.631,42.860129]
[1772470144256,45.9219218,89.711,89.654,10.037]
[1772470144558,45.9219218,89.711,89.61,10.00613046]
[1772470144559,45.9219218,89.733,89.651,42.860129]
[1772470145357,45.9219218,89.733,89.663,42.860129]
[1772470145555,45.9219218,89.733,89.64,42.860129]
[1772470145753,55.9529218,89.706,89.645,10.038]
[1772470145956,45.9219218,89.706,89.64,42.860129]
[1772470146363,45.9219218,89.706,89.641,8.03677508]
[1772470146564,45.9219218,89.706,89.642,8.03677508]
[1772470146866,45.9219218,89.706,89.643,8.03767532]
[1772470147066,45.9219218,89.73,89.645,42.860129]
[1772470147361,53.5000234,89.73,89.622,42.860129]
[1772470147561,10.032,89.696,89.635,10.039]
[1772470147760,45.9219218,89.705,89.63,7.5781016]
[1772470147962,45.9219218,89.749,89.631,50.89893044]
[1772470148260,45.9219218,89.729,89.632,8.03880144]
[1772470148456,45.9219218,89.738,89.65,42.860129]
[1772470148664,45.9219218,89.738,89.661,42.860129]
[1772470148857,45.9219218,89.738,89.663,42.860129]
[1772470149261,10.029,89.722,89.663,42.860129]
[1772470149464,45.9219218,89.738,89.663,42.860129]
[1772470149665,45.9219218,89.738,89.636,42.860129]
[1772470149961,45.9219218,89.717,89.638,42.860129]
[1772470150161,45.9219218,89.739,89.64,50.4382306]
[1772470150356,53.5000234,89.76,89.661,42.860129]
[1772470150561,10.026,89.749,89.681,10.034]
[1772470150763,55.9479218,89.749,89.681,10.034]
[1772470150962,155.859,89.813,89.64,50.4382306]
[1772470150963,45.9219218,89.739,89.64,50.4382306]
[1772470151164,45.9219218,89.739,89.641,8.069416]
[1772470151464,45.9219218,89.733,89.642,8.069416]
[1772470151661,45.9219218,89.733,89.643,50.929545]
[1772470151861,7.5781016,89.76,89.648,156.144]
[1772470152065,7.5781016,89.79,89.668,42.860129]
[1772470152265,155.854,89.816,89.67,42.860129]
[1772470152266,7.5781016,89.77,89.67,42.860129]
[1772470152571,7.5781016,89.77,89.671,50.929545]
[1772470152762,7.5781016,89.79,89.673,42.860129]
[1772470153063,7.5781016,89.79,89.675,42.860129]
[1772470153260,10.024,89.766,89.705,10.031]
[1772470153459,7.5781016,89.79,89.677,42.860129]
[1772470153663,7.5781016,89.79,89.679,42.860129]
[1772470153864,10.025,89.758,89.687,10.033]
[1772470154162,45.9219218,89.765,89.689,42.860129]
[1772470154366,45.9219218,89.765,89.69,50.92606216]
[1772470154667,45.9219218,89.765,89.692,42.860129]
[1772470154863,44.86131922,89.79,89.703,43.00582345]
[1772470155063,44.86131922,89.812,89.711,43.00582345]
[1772470155261,44.86131922,89.812,89.713,43.00582345]
[1772470155453,230.2981016,89.83,89.715,43.00582345]
[1772470155454,44.86131922,89.809,89.715,43.00582345]
[1772470155656,44.86131922,89.809,89.716,8.06593316]
[1772470155861,44.86131922,89.809,89.717,8.06593316]
[1772470156058,44.86131922,89.809,89.715,43.00582345]
[1772470156359,10.024,89.773,89.716,8.06303049]
[1772470156562,44.86131922,89.781,89.684,43.00582345]
[1772470156766,44.86131922,89.781,89.685,51.07234684]
[1772470156966,44.86131922,89.769,89.686,8.06652339]
[1772470157178,44.86131922,89.749,89.663,43.00582345]
[1772470157465,10.031,89.709,89.646,52.47166264]
[1772470157673,10.031,89.709,89.647,8.08225518]
[1772470157860,47.62633344,89.718,89.648,8.08225518]
[1772470158066,47.62633344,89.718,89.649,8.08225518]
[1772470158265,47.62633344,89.718,89.65,8.08225518]
[1772470158465,47.62633344,89.718,89.651,8.08225518]
[1772470158666,47.62633344,89.709,89.618,45.57402316]
[1772470158865,47.62633344,89.709,89.62,55.61952915]
[1772470159065,47.62633344,89.709,89.622,45.57402316]
[1772470159270,47.62633344,89.734,89.641,45.57402316]
[1772470159463,47.62633344,89.734,89.645,45.57402316]
[1772470159661,10.026,89.752,89.66,7.5781016]
[1772470159862,47.62633344,89.759,89.667,45.57402316]
[1772470160067,47.62633344,89.759,89.669,45.57402316]
[1772470160266,47.62633344,89.759,89.671,45.57402316]
[1772470160472,47.62633344,89.759,89.673,45.57402316]
[1772470160773,47.62633344,89.739,89.674,8.08976869]
[1772470160972,47.62633344,89.739,89.647,45.57402316]
[1772470161168,47.62633344,89.739,89.608,20.09101199]
[1772470161169,47.62633344,89.739,89.649,45.57402316]
[1772470161469,47.62633344,89.739,89.651,45.57402316]
[1772470161671,47.62633344,89.739,89.653,45.57402316]
[1772470161968,47.62633344,89.739,89.666,10.04550599]
[1772470162166,47.62633344,89.779,89.673,45.57402316]
[1772470162366,10.024,89.766,89.681,45.57402316]
[1772470162565,10.024,89.766,89.683,45.57402316]
[1772470162763,47.62633344,89.779,89.694,45.57402316]
[1772470163072,47.62633344,89.779,89.696,45.57402316]
[1772470163268,47.62633344,89.779,89.697,8.09725547]
[1772470163471,47.62633344,89.779,89.698,8.09725547]
[1772470163675,47.62633344,89.759,89.677,10.034]
[1772470163864,47.62633344,89.759,89.678,8.10188253]
[1772470164069,47.62633344,89.759,89.679,8.10188253]
[1772470164266,47.62633344,89.759,89.68,8.10188253]
[1772470164470,47.62633344,89.759,89.681,8.10188253]
[1772470164671,47.62633344,89.759,89.682,8.10188253]
[1772470164974,47.62633344,89.759,89.683,8.10188253]
[1772470165168,10.028,89.732,89.684,8.10188253]
[1772470165473,47.62633344,89.759,89.685,8.10188253]
[1772470165669,47.62633344,89.759,89.686,8.10188253]
[1772470165670,10.028,89.732,89.686,8.10188253]
[1772470165867,47.62633344,89.749,89.652,10.11486601]
[1772470166067,47.62633344,89.749,89.66,8.12474131]
[1772470166269,47.62633344,89.733,89.661,8.12474131]
[1772470166474,47.62633344,89.733,89.668,10.11486601]
[1772470166675,7.5781016,89.75,89.672,10.11486601]
[1772470166974,7.5781016,89.75,89.673,8.12474131]
[1772470167173,7.5781016,89.75,89.674,8.12474131]
[1772470167467,10.027,89.74,89.676,10.034]
[1772470167670,10.027,89.74,89.677,8.12474131]
[1772470167866,10.027,89.74,89.678,8.12474131]
[1772470168071,10.027,89.74,89.681,10.034]
[1772470168373,10.027,89.74,89.682,8.12474131]
[1772470168575,10.027,89.74,89.683,8.12474131]
[1772470168880,10.026,89.75,89.684,8.12474131]
[1772470169063,10.026,89.75,89.626,156.183]
[1772470169064,47.62633344,89.739,89.685,0.00074131]
[1772470169268,47.62633344,89.739,89.651,10.11486601]
[1772470169468,47.62633344,89.697,89.639,10.11486601]
[1772470169764,47.62633344,89.697,89.621,10.11486601]
[1772470169970,47.62633344,89.697,89.62,10.11486601]
[1772470170273,155.996,89.735,89.603,10.11486601]
[1772470170274,47.62633344,89.679,89.603,10.11486601]
[1772470170468,47.62633344,89.679,89.597,10.11486601]
[1772470170871,47.62633344,89.705,89.601,45.57402316]
[1772470171073,47.62633344,89.705,89.6,7.5781016]
[1772470171074,47.62633344,89.705,89.619,10.11486601]
[1772470171374,10.032,89.698,89.625,45.57402316]
[1772470171573,47.62633344,89.705,89.626,10.11486601]
[1772470171869,47.62633344,89.705,89.625,45.57402316]
[1772470172374,10.031,89.711,89.634,10.11486601]
[1772470172675,47.62633344,89.729,89.645,10.11486601]
[1772470172976,47.62633344,89.719,89.628,10.11486601]
[1772470173274,47.62633344,89.719,89.631,10.11486601]
[1772470173476,47.62633344,89.719,89.642,45.57402316]
[1772470173867,10.032,89.698,89.642,45.57402316]
[1772470175077,47.62633344,89.719,89.645,55.68888917]
[1772470175275,47.62633344,89.719,89.651,10.11486601]
[1772470175474,47.62633344,89.719,89.635,10.11486601]
[1772470175475,10.033,89.692,89.635,10.11486601]
[1772470175679,10.033,89.692,89.633,10.039]
[1772470175876,47.62633344,89.719,89.633,10.039]
[1772470175877,47.62633344,89.719,89.633,20.15386601]
[1772470176082,10.032,89.694,89.631,10.039]
[1772470176284,10.032,89.694,89.633,10.11486601]
[1772470176582,10.032,89.695,89.629,10.11486601]
[1772470176878,10.032,89.695,89.632,10.11486601]
[1772470177280,10.03,89.714,89.639,55.68888917]
[1772470177479,47.62633344,89.719,89.644,10.11486601]
[1772470177674,47.62633344,89.719,89.64,10.11486601]
[1772470177874,47.62633344,89.719,89.639,55.68888917]
[1772470178769,47.62633344,89.719,89.641,45.57402316]
[1772470178976,47.62633344,89.749,89.66,7.5781016]
[1772470179178,47.62633344,89.749,89.67,45.57402316]
[1772470179380,47.62633344,89.769,89.681,45.57402316]
[1772470179576,47.62633344,89.769,89.694,45.57402316]
[1772470179779,47.62633344,89.769,89.684,10.11486601]
[1772470179977,47.62633344,89.769,89.683,10.11486601]
[1772470180281,47.62633344,89.769,89.678,10.11486601]
[1772470180475,47.62633344,89.759,89.671,45.57402316]
[1772470180683,47.62633344,89.738,89.657,10.11486601]
[1772470180980,47.62633344,89.738,89.653,10.11486601]
[1772470181184,47.62633344,89.719,89.642,10.11486601]
[1772470181377,47.62633344,89.719,89.63,10.11486601]
[1772470181576,10.031,89.702,89.63,10.039]
[1772470182075,47.62633344,89.701,89.63,10.039]
[1772470182281,47.62633344,89.701,89.64,10.038]
[1772470182483,47.62633344,89.701,89.629,10.11486601]
[1772470182683,47.62633344,89.701,89.626,55.68888917]
[1772470182884,47.62633344,89.701,89.626,45.57402316]
[1772470183383,47.62633344,89.729,89.652,10.11486601]
[1772470183585,47.62633344,89.729,89.649,10.11486601]
[1772470183789,47.62633344,89.729,89.65,55.68888917]
[1772470184082,47.62633344,89.729,89.652,55.68888917]
[1772470184282,10.029,89.728,89.654,10.037]
[1772470184780,10.029,89.728,89.662,55.61002316]
[1772470184977,10.029,89.728,89.666,10.17179254]
[1772470185181,10.029,89.728,89.663,10.17179254]
[1772470185377,10.027,89.739,89.666,10.035]
[1772470185581,47.62633344,89.751,89.666,10.035]
[1772470185783,47.62633344,89.751,89.667,45.57402316]
[1772470186885,10.028,89.733,89.667,45.57402316]
[1772470187089,47.62633344,89.751,89.65,53.15212476]
[1772470187383,47.62633344,89.749,89.65,53.15212476]
[1772470187685,43.01205447,89.727,89.65,53.15212476]
[1772470188284,43.01205447,89.727,89.65,45.57402316]
[1772470188789,43.01205447,89.727,89.65,53.15212476]
[1772470189280,43.01205447,89.727,89.642,13.56239005]
[1772470189281,43.01205447,89.707,89.629,46.05971038]
[1772470189685,43.01205447,89.677,89.62,13.56239005]
[1772470189883,43.01205447,89.677,89.608,46.05971038]
[1772470190785,43.01205447,89.703,89.608,46.05971038]
[1772470191186,43.01205447,89.703,89.611,46.05971038]
[1772470191384,43.01205447,89.703,89.616,46.05971038]
[1772470191679,43.01205447,89.657,89.582,13.56239005]
[1772470191884,43.01205447,89.649,89.572,13.56239005]
[1772470192084,10.039,89.63,89.573,10.046]
[1772470192286,43.01205447,89.649,89.574,46.05971038]
[1772470193083,10.036,89.66,89.591,56.10371038]
[1772470193288,43.01205447,89.672,89.591,56.10371038]
[1772470193489,10.036,89.662,89.599,56.10271038]
[1772470193691,43.01205447,89.672,89.599,56.10271038]
[1772470193692,43.01205447,89.672,89.599,46.05971038]
[1772470195985,43.01205447,89.672,89.602,46.05971038]
[1772470196988,10.036,89.662,89.602,46.05971038]
[1772470197890,43.01205447,89.672,89.602,46.05971038]
[1772470198086,43.01205447,89.672,89.59,10.044]
[1772470198394,43.01205447,89.672,89.592,10.044]
[1772470198887,7.5850117,89.7,89.58,53.64472208]
[1772470198888,43.01205447,89.667,89.609,10.042]
[1772470199293,43.01205447,89.667,89.598,46.05971038]
[1772470199590,43.01205447,89.667,89.54,156.333]
[1772470199591,53.04505447,89.686,89.603,46.05971038]
[1772470199893,53.04505447,89.686,89.602,10.17365701]
[1772470199894,43.01205447,89.686,89.609,56.10171038]
[1772470200287,43.01205447,89.686,89.609,46.05971038]
[1772470200592,43.01205447,89.708,89.626,46.05971038]
[1772470200790,43.01205447,89.708,89.645,10.038]
[1772470200994,43.01205447,89.708,89.628,46.05971038]
[1772470201293,43.01205447,89.674,89.607,10.17365701]
[1772470201594,43.01205447,89.674,89.587,10.17365701]
[1772470201790,43.01205447,89.674,89.591,10.17365701]
[1772470201991,43.01205447,89.657,89.582,10.17365701]
[1772470202193,43.01205447,89.657,89.575,10.17365701]
[1772470202495,7.5850117,89.67,89.591,10.044]
[1772470202496,53.04905447,89.65,89.591,10.044]
[1772470202695,53.04905447,89.65,89.575,10.17365701]
[1772470202895,43.01205447,89.65,89.575,10.17365701]
[1772470203096,43.01205447,89.65,89.576,10.17365701]
[1772470203297,43.01205447,89.641,89.563,738.08298038]
[1772470203491,7.5850117,89.63,89.555,10.17365701]
[1772470203696,7.5850117,89.63,89.53,7.5850117]
[1772470203697,43.01205447,89.621,89.552,10.048]
[1772470204394,43.01205447,89.617,89.528,10.17365701]
[1772470204798,10.042,89.61,89.528,10.17365701]
[1772470204995,43.01205447,89.609,89.527,10.17365701]
[1772470205202,43.01205447,89.609,89.52,46.05971038]
[1772470205397,43.01205447,89.608,89.528,10.17365701]
[1772470205694,43.01205447,89.608,89.524,46.05971038]
[1772470205900,43.01205447,89.608,89.506,10.17365701]
[1772470206097,43.01205447,89.591,89.505,10.17365701]
[1772470206303,43.01205447,89.589,89.501,46.05971038]
[1772470206695,43.01205447,89.589,89.511,10.053]
[1772470207297,10.044,89.588,89.501,56.11371038]
[1772470207496,43.01205447,89.569,89.476,10.17365701]
[1772470207802,43.01205447,89.569,89.461,46.05971038]
[1772470207995,43.01205447,89.558,89.475,10.057]
[1772470208201,43.01205447,89.549,89.461,46.05971038]
[1772470208398,43.01205447,89.579,89.481,46.05971038]
[1772470208599,43.01205447,89.569,89.483,46.05971038]
[1772470209095,43.01205447,89.569,89.48,7.5850117]
[1772470209096,43.01205447,89.596,89.506,46.05971038]
[1772470209399,43.01205447,89.596,89.481,10.15473407]
[1772470209400,43.01205447,89.596,89.484,46.05971038]
[1772470209595,43.01205447,89.596,89.5,53.64472208]
[1772470209993,43.01205447,89.592,89.501,46.05971038]
[1772470210393,43.01205447,89.592,89.48,7.5850117]
[1772470210593,43.01205447,89.575,89.492,46.05971038]
[1772470210796,43.01205447,89.601,89.521,46.05971038]
[1772470211194,43.01205447,89.601,89.5,7.5850117]
[1772470211400,43.01205447,89.601,89.498,46.05971038]
[1772470211602,43.01205447,89.589,89.498,46.05971038]
[1772470212398,43.01205447,89.589,89.501,46.05971038]
[1772470213205,43.01205447,89.589,89.48,7.5850117]
[1772470213503,53.06005447,89.554,89.48,7.5850117]
[1772470213700,53.06005447,89.554,89.474,46.05971038]
[1772470214097,43.01205447,89.543,89.457,46.05971038]
[1772470215116,10.051,89.53,89.457,46.05971038]
[1772470215309,43.01205447,89.543,89.457,46.05971038]
[1772470215504,43.01205447,89.543,89.456,51.59276817]
[1772470215904,44.95460114,89.529,89.456,51.59276817]
[1772470216306,10.052,89.523,89.456,97.78153579]
[1772470216507,7.5850117,89.55,89.457,46.18876762]
[1772470216706,44.95460114,89.551,89.457,46.18876762]
[1772470217111,44.95460114,89.551,89.478,46.18876762]
[1772470217309,46.89658606,89.573,89.478,46.18876762]
[1772470217514,46.89658606,89.573,89.49,7.5850117]
[1772470217713,46.89658606,89.573,89.491,43.06196415]
[1772470218606,46.89658606,89.569,89.47,43.06196415]
[1772470219016,156.234,89.598,89.456,51.59276817]
[1772470219017,46.89658606,89.543,89.456,94.65473232]
[1772470219414,10.052,89.52,89.456,94.65473232]
[1772470220515,46.89658606,89.543,89.457,43.06196415]
[1772470221811,46.89658606,89.543,89.456,51.59276817]
[1772470221812,46.89658606,89.539,89.456,51.46539152]
[1772470222016,46.89658606,89.539,89.436,43.06196415]
[1772470222217,46.89658606,89.539,89.428,10.20105284]
[1772470222218,46.89658606,89.539,89.441,43.06196415]
[1772470223015,46.89658606,89.539,89.44,7.5850117]
[1772470223016,46.89658606,89.539,89.428,10.20105284]
[1772470223619,7.5850117,89.54,89.429,43.06196415]
[1772470223620,46.89658606,89.507,89.429,43.06196415]
[1772470224113,10.054,89.505,89.438,10.061]
[1772470224319,46.89658606,89.507,89.429,43.06196415]
[1772470224617,46.89658606,89.507,89.428,10.20105284]
[1772470224817,22.89095081,89.507,89.428,53.26301699]
[1772470225223,22.89095081,89.507,89.455,10.059]
[1772470225420,22.89095081,89.507,89.428,53.26301699]
[1772470225823,10.053,89.506,89.443,10.06]
[1772470226121,22.89095081,89.507,89.428,53.26301699]
[1772470226522,7.5850117,89.54,89.428,53.26301699]
[1772470227024,46.89658606,89.539,89.428,53.26301699]
[1772470227223,7.5850117,89.54,89.428,53.26301699]
[1772470227224,46.89658606,89.513,89.428,53.26301699]
[1772470227424,46.89658606,89.513,89.428,10.20105284]
[1772470227723,7.5850117,89.52,89.428,10.20105284]
[1772470227724,10.056,89.479,89.428,10.20105284]
[1772470228427,46.89658606,89.49,89.428,10.20105284]
[1772470229126,13.72610752,89.449,89.347,43.06196415]
[1772470229327,13.7267588,89.448,89.347,43.06196415]
[1772470229625,13.7267588,89.448,89.351,43.06196415]
[1772470230125,15.10538709,89.469,89.373,43.06196415]
[1772470230527,25.16138709,89.486,89.404,53.12696415]
[1772470231029,15.10538709,89.486,89.404,43.06196415]
[1772470231224,25.16138709,89.486,89.415,43.06196415]
[1772470231424,15.10538709,89.486,89.36,43.06196415]
[1772470231621,10.056,89.484,89.399,43.06196415]
[1772470231927,16.24671021,89.459,89.345,43.06196415]
[1772470232424,14.12560057,89.419,89.321,43.06196415]
[1772470232618,14.12560057,89.399,89.303,1.94721263]
[1772470232821,14.19466445,89.384,89.301,10.076]
[1772470233018,7.5850117,89.38,89.298,43.06196415]
[1772470233219,14.20173655,89.379,89.293,1.94790474]
[1772470233526,14.20173655,89.379,89.305,43.06196415]
[1772470233923,10.069,89.368,89.305,43.06196415]
[1772470234126,14.20173655,89.379,89.305,43.06196415]
[1772470234329,9.02739724,89.399,89.305,43.06196415]
[1772470234531,9.02739724,89.399,89.308,43.90023841]
[1772470234532,10.068,89.381,89.308,43.90023841]
[1772470234728,9.02739724,89.399,89.308,43.90023841]
[1772470235435,10.067,89.383,89.309,10.075]
[1772470235734,10.069,89.37,89.29,43.89859043]
[1772470235934,9.16461463,89.429,89.311,43.89859043]
[1772470236238,9.16461463,89.429,89.331,43.89859043]
[1772470237826,10.065,89.407,89.333,44.52716357]
[1772470238034,9.16461463,89.429,89.341,44.52716357]
[1772470239638,10.065,89.4,89.341,44.52716357]
[1772470239831,9.16461463,89.429,89.341,44.52716357]
[1772470240431,156.468,89.464,89.319,44.36214661]
[1772470240432,8.49425037,89.406,89.319,44.36214661]
[1772470240628,8.49425037,89.399,89.319,44.36214661]
[1772470240828,8.49425037,89.422,89.319,44.36214661]
[1772470241427,10.064,89.415,89.339,10.072]
[1772470241628,156.453,89.472,89.331,44.36094195]
[1772470241629,8.55910637,89.445,89.331,44.36094195]
[1772470242234,8.55910637,89.445,89.351,44.3331342]
[1772470243734,7.5850117,89.45,89.32,7.5850117]
[1772470243735,8.73858539,89.429,89.321,44.33194665]
[1772470245535,7.5850117,89.41,89.321,44.33194665]
[1772470245729,7.66657479,89.409,89.321,44.33194665]
[1772470245931,7.72460555,89.389,89.299,44.92744305]
[1772470247841,7.85732592,89.369,89.274,46.0551751]
[1772470248739,7.5850117,89.39,89.281,46.0551751]
[1772470248941,6.17678469,89.393,89.301,46.0551751]
[1772470249435,6.23126078,89.379,89.301,46.0551751]
[1772470250843,6.23126078,89.379,89.274,46.47589069]
[1772470252342,6.23126078,89.379,89.281,46.48453206]
[1772470255444,4.6460473,89.406,89.301,46.78051315]
[1772470256746,6.00472459,89.389,89.301,46.78051315]
[1772470256936,6.00472459,89.389,89.271,46.12549559]
[1772470258547,6.00472459,89.389,89.291,46.0551751]
[1772470259551,7.63399644,89.4,89.291,46.0551751]
[1772470259754,7.63399644,89.4,89.29,7.63399644]
[1772470259755,10.31283838,89.379,89.27,46.0551751]
[1772470260146,10.31283838,89.379,89.281,46.0551751]
[1772470260650,7.63399644,89.39,89.281,46.0551751]
[1772470260948,10.41944795,89.409,89.301,46.0551751]
[1772470261149,10.41944795,89.435,89.341,46.0551751]
[1772470261550,10.4214923,89.459,89.361,46.0551751]
[1772470262053,10.73170989,89.449,89.361,46.0551751]
[1772470262957,10.77535645,89.469,89.361,46.0551751]
[1772470263449,10.77535645,89.469,89.36,7.63399644]
[1772470263450,10.77535645,89.469,89.381,46.0551751]
[1772470264454,11.61765518,89.493,89.401,46.0551751]
[1772470265056,13.56784489,89.596,89.36,20.06586655]
[1772470265057,11.66233965,89.539,89.421,46.0551751]
[1772470265667,11.66233965,89.529,89.421,46.0551751]
[1772470265863,11.66233965,89.529,89.391,20.06586655]
[1772470265864,11.70380338,89.489,89.383,46.0551751]
[1772470268060,7.63399644,89.5,89.383,46.0551751]
[1772470268265,7.53223199,89.499,89.401,46.0551751]
[1772470269760,15.20623817,89.52,89.401,46.0551751]
[1772470270065,7.61119593,89.519,89.401,46.0551751]
[1772470270259,7.61119593,89.519,89.42,7.63399644]
[1772470270463,7.61119593,89.519,89.421,46.0551751]
[1772470270863,15.07619522,89.54,89.421,46.0551751]
[1772470271063,7.44219878,89.539,89.426,56.25491222]
[1772470271265,7.44219878,89.539,89.426,46.0551751]
[1772470271665,7.44219878,89.539,89.441,46.0551751]
[1772470274269,7.24638206,89.529,89.441,46.0551751]
[1772470274867,7.24638206,89.529,89.42,7.63399644]
[1772470274868,7.24638206,89.509,89.42,46.0551751]
[1772470275863,7.37760485,89.529,89.42,53.68917154]
[1772470277470,7.23585794,89.509,89.42,46.0551751]
[1772470278563,7.63399644,89.53,89.42,46.0551751]
[1772470278767,6.98833801,89.531,89.431,46.74951525]
[1772470279273,7.63399644,89.55,89.451,46.74951525]
[1772470279472,7.02155611,89.549,89.451,46.74951525]
[1772470279672,360.1623237,89.565,89.451,46.74951525]
[1772470280070,360.1623237,89.565,89.471,46.74951525]
[1772470280273,7.28297614,89.564,89.471,46.74951525]
[1772470282468,360.1623237,89.565,89.471,46.74951525]
[1772470282869,360.1623237,89.565,89.44,7.63399644]
[1772470282870,360.1623237,89.565,89.491,46.74951525]
[1772470284170,13.69910302,89.702,89.44,7.63399644]
[1772470284171,7.42608333,89.606,89.511,46.74951525]
[1772470284775,7.63399644,89.62,89.521,46.74951525]
[1772470285371,7.42608333,89.627,89.521,46.74951525]
[1772470285978,7.48449752,89.619,89.521,46.74951525]
[1772470287079,7.78596828,89.599,89.521,46.74951525]
[1772470287379,7.78596828,89.599,89.491,46.74951525]
[1772470287580,7.78619564,89.559,89.491,46.74951525]
[1772470287779,7.78619564,89.559,89.469,46.74951525]
[1772470289281,10.05,89.532,89.469,46.74951525]
[1772470289475,7.78619564,89.559,89.469,46.74951525]
[1772470290082,10.051,89.524,89.469,46.74951525]
[1772470290287,25.42755363,89.539,89.42,7.63399644]
[1772470290481,10.057,89.475,89.403,10.065]
[1772470290681,10.057,89.475,89.4,7.63399644]
[1772470290682,25.42755363,89.519,89.4,7.63399644]
[1772470290880,25.46804655,89.499,89.4,7.63399644]
[1772470291186,10.059,89.461,89.4,10.065]
[1772470291980,10.059,89.461,89.391,10.066]
[1772470292180,10.059,89.461,89.392,46.74951525]
[1772470292478,25.46804655,89.499,89.401,46.74951525]
[1772470292880,10.058,89.467,89.401,46.74951525]
[1772470293278,25.46804655,89.499,89.401,46.74951525]
[1772470294084,10.06,89.452,89.401,46.74951525]
[1772470294984,10.058,89.463,89.401,46.74951525]
[1772470295391,21.80878359,89.479,89.401,46.74951525]
[1772470295891,21.80878359,89.479,89.371,46.74951525]
[1772470296086,21.80878359,89.479,89.375,46.74951525]
[1772470296288,176.464,89.525,89.33,156.701]
[1772470296289,21.87829328,89.5,89.411,46.74951525]
[1772470296487,10.055,89.492,89.418,46.74951525]
[1772470297583,10.054,89.502,89.426,46.74951525]
[1772470297989,7.63399644,89.52,89.426,46.74951525]
[1772470298187,10.057,89.473,89.426,46.74951525]
[1772470299894,22.6044048,89.499,89.426,46.74951525]
[1772470300397,10.059,89.456,89.384,10.067]
[1772470300590,40.35737254,89.474,89.37,7.63399644]
[1772470301191,10.06,89.445,89.373,10.068]
[1772470302195,40.35737254,89.474,89.373,10.068]
[1772470302496,20.116,89.469,89.378,46.74951525]
[1772470302694,10.061,89.439,89.378,46.74951525]
[1772470303099,48.59547085,89.46,89.378,46.74951525]
[1772470303100,40.96147441,89.46,89.378,46.74951525]
[1772470303392,40.96147441,89.46,89.378,56.94676126]
[1772470303986,10.06,89.449,89.378,56.94676126]
[1772470304393,10.06,89.449,89.38,46.74951525]
[1772470304593,10.061,89.44,89.38,46.74951525]
[1772470305399,10.06,89.449,89.382,46.74951525]
[1772470305698,40.96147441,89.46,89.382,46.74951525]
[1772470305993,40.96147441,89.46,89.351,71.59360562]
[1772470305994,40.19807124,89.496,89.391,46.74951525]
[1772470306194,40.19807124,89.496,89.395,46.74951525]
[1772470306697,40.19807124,89.496,89.37,28.02848847]
[1772470306698,40.19807124,89.496,89.397,46.74951525]
[1772470307098,10.06,89.45,89.397,46.74951525]
[1772470307295,40.19807124,89.496,89.397,46.74951525]
[1772470307496,40.19807124,89.496,89.406,46.96572579]
[1772470307691,20.104,89.522,89.406,46.96572579]
[1772470307692,10.058,89.466,89.406,46.96572579]
[1772470308198,42.16055693,89.489,89.406,46.96572579]
[1772470308798,41.2611905,89.507,89.409,46.96572579]
[1772470308999,41.2611905,89.507,89.409,57.1629718]
[1772470309193,10.056,89.487,89.426,10.062]